[Event "Mongolian Championship Women 2022"]
[Site "Chingis Khentii"]
[Date "2022.05.21"]
[Round "9.3"]
[White "Munkhzul, Davaakhuu"]
[Black "Amin-Erdene, Bayanmunkh"]
[Result "1-0"]
[ECO "B09"]
[WhiteElo "1991"]
[BlackElo "1425"]
[Annotator "TA"]
[PlyCount "125"]
[EventDate "2022.05.12"]
[EventType "tourn"]
[EventCountry "MGL"]
[SourceTitle "playchess.com"]
[Source "ChessBase"]
[SourceQuality "1"]
[TimeControl "40/5400+30:1800+30"]

{[%evp 17,125,-17,-12,-6,-13,-18,-14,-24,-16,-18,-15,-28,-8,-14,0,0,68,10,38,42,70,77,94,56,87,-10,30,16,53,58,59,58,62,38,47,0,24,22,50,26,27,31,69,67,72,73,171,50,60,56,56,56,56,57,56,10,16,13,23,23,25,32,122,96,96,96,170,163,169,162,162,112,511,511,511,511,511,478,428,208,208,208,208,208,208,207,553,541,540,502,551,558,500,469,825,827,725,690,29953,12386,29956,29942,29976,6079,29978,29979,29979,29980,29986,5695]} 1. e4 {[%emt 0:00:01]} d6 {[%emt 0:00:04]} 2. d4 {[%emt 0:00:13]} Nf6 {[%emt 0:00:04]} 3. Nc3 {[%emt 0:00:06]} g6 {[%emt 0:00:04]} 4. f4 {[%emt 0:00:20]} Bg7 {[%emt 0:00:02]} 5. Nf3 {[%emt 0:00:07]} O-O {[%emt 0:00:06]} 6. e5 {[%emt 0:00:03]} dxe5 {[%emt 0:00:04]} 7. fxe5 {[%emt 0:00:05]} Nd5 {[%emt 0:00:04]} 8. Bc4 {[%emt 0:00:11]} Nxc3 {[%emt 0:00:04]} 9. bxc3 {[%emt 0:00:06]} c5 {[%emt 0:00:04]} 10. O-O {[%emt 0:01:12] Strongly threatening Ng5. B09: Pirc Defence: Austrian Attack.} Bg4 $1 {[%emt 0:00:09] 10...Bg4 scores better than 10...Nc6.} 11. Ba3 {[%emt 0:08:51]} Nc6 {[%emt 0:40:54] aiming for ...cxd4.} 12. Bxc5 {[%emt 0:15:02] [#] The position is equal.} Qc7 $146 {[%emt 0:02:20][%cal Rc6e5]} ({Predecessor:} 12... Qa5 13. Bd5 Nxe5 14. Bxb7 Rab8 15. Bb4 {½-½ (15) Pruijssers,R (2506)-Ikonnikov,V (2546) Vlissingen 2018}) 13. Be2 {[%emt 0:04:58]} (13. Qd3 {feels hotter.} Bxf3 14. Qxf3 Nxe5 15. Qf4) 13... Bxf3 {[%emt 0:01:29]} 14. Rxf3 {[%emt 0:00:18] [#]} Nxe5 $1 {[%emt 0:00:51]} 15. Rh3 {[%emt 0:00:28]} b6 {[%emt 0:04:11]} 16. Ba3 {[%emt 0:01:55]} Nc6 {[%emt 0:05:05]} (16... Nc4 $11 17. Bxc4 Qxc4) 17. Kh1 {[%emt 0:07:55]} ({White should try} 17. Qd2 $14) 17... Rfe8 {[%emt 0:07:22]} 18. Qe1 {[%emt 0:01:45]} e5 {[%emt 0:05:37]} 19. d5 {[%emt 0:02:59]} Na5 {[%emt 0:01:09]} 20. Qh4 {[%emt 0:16:16][%csl Gh3][%cal Rh4h7]} h6 {[%emt 0:01:28]} 21. Bc1 {[%emt 0:02:27] White is more active.} (21. Bb5 $16) 21... g5 {[%emt 0:03:07]} 22. Qe4 {[%emt 0:05:42]} Nb7 {[%emt 0:03:54]} 23. Ba3 $1 {[%emt 0:02:17]} Nc5 {[%emt 0:04:29]} 24. Bxc5 {[%emt 0:00:37]} Qxc5 {[%emt 0:00:15]} 25. Bd3 {[%emt 0:01:02] Threatens to win with Rf1.} Rad8 $1 {[%emt 0:11:06]} (25... Kf8 26. Rf1 Qd6 27. c4 $16 (27. Qf3 Re7 $16)) 26. Qh7+ {[%emt 0:04:25]} Kf8 {[%emt 0:00:09]} 27. Be4 {[%emt 0:00:12]} Rxd5 {[%emt 0:03:53]} 28. Bxd5 {[%emt 0:04:09]} Qxd5 {[%emt 0:00:01]} 29. Qf5 {[%emt 0:00:18]} Qe6 {[%emt 0:01:03]} 30. Qe4 {[%emt 0:02:36]} Rc8 {[%emt 0:02:27]} 31. Rd3 {[%emt 0:03:35]} Rc4 {[%emt 0:02:16]} (31... Kg8 $16) 32. Rd8+ {[%emt 0:01:01]} (32. Qa8+ $1 $18 Rc8 33. Qxa7) 32... Ke7 $14 {[%emt 0:00:01]} 33. Qa8 {[%emt 0:00:10]} Qc6 {[%emt 0:00:30] Against Re8+} 34. Qb8 {[%emt 0:08:42]} Qc7 $1 {[%emt 0:00:16]} 35. Re8+ {[%emt 0:00:40]} Kf6 {[%emt 0:00:03]} 36. Rf1+ {[%emt 0:00:25]} (36. Qa8 $14 {feels stronger.}) 36... Kg6 $11 {[%emt 0:00:15]} 37. Qa8 $36 {[%emt 0:00:29][%mdl 2048] next Qf3 is good for White. White is pushing.} Qc6 {[%emt 0:02:10]} 38. Qd8 {[%emt 0:00:17]} Rf4 {[%emt 0:01:33]} 39. Rxf4 {The board is on fire.} gxf4 {[%emt 0:00:01][%mdl 4096] Endgame KQR-KQB} (39... exf4 $14 40. Qd3+ f5) 40. Qd3+ $1 $16 {[%emt 0:00:00]} f5 {[%emt 0:00:00]} 41. Rd8 {[%emt 0:23:01] Rd6+ is the strong threat.} Bf6 {[%emt 0:20:15]} (41... Qc5 $16) 42. Qd7 $1 $18 {[%emt 0:01:07] Threatening mate with Rg8+.} Qc4 {[%emt 0:02:30][%cal Rc4f1] Prevents Rg8+.} 43. Qe8+ {[%emt 0:01:33]} Kh7 {[%emt 0:00:39][%cal Rc4f1] [#]} 44. Rd1 {[%emt 0:00:26] Inhibits Qf1+. And now h3 would win.} (44. Rd7+ Bg7 45. h3 Qe2 $11) 44... e4 $2 {[%emt 0:02:47][%mdl 8192] This move loses the game for Black.} (44... Qe4 $16 {is tougher.}) 45. h4 {[%emt 0:01:18] Black must now prevent Rd7+.} ({Worse is} 45. Rd7+ Bg7 46. h4 Qf1+ 47. Kh2 Qf2 $11) 45... f3 {[%emt 0:04:56]} 46. h5 {[%emt 0:00:42] White wants to mate with Rd7+.} fxg2+ {[%emt 0:00:39]} 47. Kg1 {[%emt 0:00:15] Rd7+ would kill now.} Qg8 {[%emt 0:02:40]} 48. Qxg8+ {[%emt 0:10:35]} ({Not} 48. Rd7+ Kh8 49. Qxg8+ Kxg8 50. Rxa7 Bxc3 51. Kxg2 Kf8 $18) (48. Qd7+ $142 Kh8 49. Qxf5) 48... Kxg8 {[%emt 0:00:01] KR-KB} 49. Rd5 {[%emt 0:00:08]} Bxc3 {[%emt 0:01:04]} 50. Kxg2 {[%emt 0:00:05]} ({Wrong is} 50. Rxf5 $2 e3 51. Rf4 e2 52. Rg4+ Kf8 53. Rf4+ Kg7 $19) 50... f4 {[%emt 0:00:34]} 51. Rf5 {[%emt 0:00:36][%mdl 1024] White has strong compensation.} Bd2 {[%emt 0:00:34]} (51... f3+ {is more resistant.} 52. Kg3 Bd2) 52. Re5 {[%emt 0:00:59]} e3 {[%emt 0:00:15]} 53. Kf3 {[%emt 0:00:19]} Kf7 {[%emt 0:00:44]} 54. Rf5+ {[%emt 0:00:41]} Ke6 {[%emt 0:00:20]} 55. Rxf4 {[%emt 0:00:16]} Ke5 {[%emt 0:00:37]} (55... e2 $142) 56. Rf7 {[%emt 0:00:26]} a6 {[%emt 0:00:36]} 57. Ke2 {[%emt 0:00:26] Hoping for Rh7.} Bc3 {[%emt 0:00:37]} 58. Rh7 {[%emt 0:00:30]} Kf5 {[%emt 0:00:22]} 59. Rxh6 {[%emt 0:00:12]} Bd4 {[%emt 0:00:22]} 60. Rg6 {[%emt 0:00:06]} (60. Rc6 $142 a5 61. h6 a4 62. Rd6 Bc5 63. h7 Bxd6 64. h8=Q Bc5 65. Qh5+ Ke6 66. Qe8+ Kd6 67. Qxa4) 60... a5 {[%emt 0:00:09]} 61. Rg8 {[%emt 0:00:18] White mates.} Ke6 {[%emt 0:00:47]} 62. h6 {[%emt 0:00:05]} Kd5 {[%emt 0:00:07]} 63. h7 {[%emt 0:00:09] Weighted Error Value: White=0.14 (very precise) /Black=0.63} (63. Rd8+ $142 Kc5 {[#]} 64. Rxd4 $1 {[%mdl 512]} Kxd4 65. h7 Kd5 66. h8=Q b5 67. Qd8+ Kc5 68. Qxa5) 1-0

[Event "Mongolian Championship Women 2022"]
[Site "Chingis Khentii"]
[Date "2022.05.21"]
[Round "9.4"]
[White "Tsetsenbileg, Munkhbayar"]
[Black "Mungunzul, Bat-Erdene"]
[Result "0-1"]
[ECO "D15"]
[WhiteElo "1830"]
[BlackElo "2091"]
[Annotator "TA"]
[PlyCount "134"]
[EventDate "2022.05.12"]
[EventType "tourn"]
[EventCountry "MGL"]
[SourceTitle "playchess.com"]
[Source "ChessBase"]
[SourceQuality "1"]
[TimeControl "40/5400+30:1800+30"]

{[%evp 9,134,8,18,13,11,12,22,18,45,-20,-11,-16,-12,-14,67,0,61,0,0,0,0,0,0,0,58,31,120,14,11,22,144,131,148,137,336,114,163,161,155,162,153,-59,-57,-62,-34,-525,0,0,100,-206,-206,-207,-201,-216,-215,-295,-225,-225,-225,-226,-226,-232,-232,-232,-231,-231,-231,-231,-217,-231,-229,-222,-210,-270,-269,-359,-360,-409,-400,-407,-400,-543,-358,-375,-366,-351,-363,-547,-539,-608,-596,-482,-479,-552,-549,-891,-746,-4129,-4129,-4125,-4120,-3749,-2517,-6079,-5834,-5810,-4250,-6418,-6270,-5401,-5377,-4122,-2538,-29977,-29977,-29983,-29984,-29985,-29986,-29986,-29987,-29988,-29989,-29989,-29990,-29990,-29991]} 1. d4 {[%emt 0:01:09]} d5 {[%emt 0:00:07]} 2. c4 {[%emt 0:00:08]} c6 {[%emt 0:00:08]} 3. Nc3 {[%emt 0:00:40]} Nf6 {[%emt 0:00:09]} 4. e3 {[%emt 0:00:14]} a6 {[%emt 0:00:10]} 5. Nf3 {[%emt 0:01:45]} Bf5 {[%emt 0:01:40]} 6. Bd2 {[%emt 0:02:32] D15: Slav Defence: 4 Nc3 a6 and gambit lines after 4 Nc3 dxc4.} e6 {[%emt 0:01:39]} 7. Qb3 {[%emt 0:00:56]} Ra7 {[%emt 0:00:34]} 8. Nh4 {[%emt 0:01:09] The position is equal.} Bg4 {[%emt 0:03:44]} 9. f3 {[%emt 0:03:56]} ({White should try} 9. h3 $14 Bh5 10. g4) 9... Bh5 $11 {[%emt 0:02:51] [#]} 10. O-O-O $146 {[%emt 0:11:44]} ({Predecessor:} 10. f4 Ne4 11. Nxe4 Qxh4+ 12. Nf2 Nd7 13. g3 Qd8 14. Bg2 Bd6 15. e4 dxe4 16. Nxe4 {1-0 (63) Niemann,H (2460)-Sohier,J (2188) Chess.com INT 2019}) 10... Nfd7 {[%emt 0:05:31]} 11. g4 {[%emt 0:00:29]} Bxg4 {[%emt 0:03:51] [#]} (11... Qxh4 $11 12. gxh5 b5) 12. fxg4 {[%emt 0:00:15]} (12. cxd5 $1 $14 cxd5 (12... Bh5 13. dxe6) 13. fxg4 Qxh4 14. e4 dxe4 15. Nxe4) 12... Qxh4 {[%emt 0:00:16]} (12... dxc4 $11 13. Bxc4 (13. Qxc4 Qxh4 14. Qe2 h5 $11) 13... Qxh4) 13. Be2 {[%emt 0:01:51]} (13. cxd5 $14 cxd5 14. e4 dxe4 15. Nxe4) 13... b5 {[%emt 0:06:51]} 14. cxd5 {[%emt 0:03:11]} cxd5 {[%emt 0:00:46]} 15. e4 {[%emt 0:04:29]} b4 {[%emt 0:10:31]} 16. Na4 {[%emt 0:00:36]} dxe4 {[%emt 0:00:40]} (16... Nf6 $11) 17. d5 {[%emt 0:01:53] Kb1 is the strong threat.} exd5 {[%emt 0:16:27]} (17... e5 $1 $14) 18. Qxd5 {[%emt 0:03:05]} (18. Kb1 $1 $16) 18... Be7 $1 {[%emt 0:00:10]} 19. Qxe4 {[%emt 0:12:24]} a5 {[%emt 0:00:43]} (19... Nf6 $11 {keeps the balance.} 20. Qf4 O-O) 20. Bf4 $16 {[%emt 0:07:59] Hoping for Bxb8.} (20. Be3 $6 Rc7+ 21. Kb1 O-O $14) 20... O-O {[%emt 0:07:34]} 21. Qe3 {[%emt 0:01:36]} Nc5 $2 {[%emt 0:07:22]} (21... Nc6 $16) 22. Kb1 $2 {[%emt 0:04:41]} (22. Nxc5 $18 {is the precise move to win.} Rc8 23. Kb1 $1 Bxc5 24. Rc1) 22... Nxa4 {[%emt 0:08:41]} 23. Qxa7 $18 {[%emt 0:00:35]} Nc6 {[%emt 0:00:07]} 24. Qe3 {[%emt 0:02:32] Strongly threatening Bb5.} Qf6 {[%emt 0:01:51][%csl Ga4][%cal Rf6b2]} 25. Qb3 {[%emt 0:04:43]} (25. Rd2 $16) 25... Nc3+ $40 {[%emt 0:02:52][%mdl 128] Black is up to no good.} ({Don't take} 25... Qxf4 26. Qxa4 Ne5 27. Qc2 $16) ({Don't play} 25... Nc5 26. Qc4 $16) 26. bxc3 {[%emt 0:00:14]} Qxf4 {[%emt 0:00:06]} 27. Qd5 $2 {[%emt 0:02:41][%mdl 8192] [#]} (27. Rhf1 $15 Qxh2 28. Bd3) 27... Qc7 $2 {[%emt 0:07:50]} (27... bxc3 $1 $19 {[%cal Oc3c2] ( -> ...c2+!)} 28. Qxc6 Rb8+ 29. Kc2 (29. Ka1 {gets mated.} c2) 29... Bf6) 28. Bb5 $11 {[%emt 0:05:29]} Na7 {[%emt 0:00:03]} (28... Nd8 $11) 29. Qd7 $2 {[%emt 0:01:24][%mdl 8192]} (29. c4 $16 {is forced if you want to stay better.}) 29... Nxb5 $19 {[%emt 0:02:22][%cal Ba7b5,Bb5c7,Bc7e6][%mdl 32] White is now going downhill.} 30. Qxc7 {[%emt 0:00:57]} Nxc7 {[%emt 0:00:04]} 31. Rd7 {[%emt 0:00:02]} Bd8 {[%emt 0:00:12]} 32. Rhd1 {[%emt 0:00:00]} Ne6 {[%emt 0:00:09]} 33. cxb4 {[%emt 0:00:12]} axb4 {[%emt 0:00:02]} 34. Rb7 {[%emt 0:00:18]} Bc7 {[%emt 0:01:17]} 35. h3 {[%emt 0:00:51]} Rb8 {[%emt 0:00:32]} 36. Rxb8+ {[%emt 0:01:17]} Bxb8 {[%emt 0:00:02]} 37. Kc2 {[%emt 0:00:37] [#]} Ba7 $1 {[%emt 0:00:11]} 38. Kb3 {[%emt 0:00:33]} Bc5 {[%emt 0:00:08]} 39. Kc4 {[%emt 0:00:31]} g6 {[%emt 0:00:39]} 40. Kd5 {[%emt 0:00:00]} Kg7 {[%emt 0:00:00]} 41. Kc6 {[%emt 0:04:40]} Bf8 {[%emt 0:00:58]} 42. Kd7 {[%emt 0:01:46]} Nc5+ {[%emt 0:00:56]} 43. Ke8 {[%emt 0:00:25]} Ne4 {[%emt 0:00:12] Threatens to win with ...f5.} 44. Rf1 {[%emt 0:00:37]} f6 {[%emt 0:01:12]} 45. Rd1 {[%emt 0:00:50]} Kg8 {[%emt 0:05:17]} 46. Rf1 {[%emt 0:01:52]} Nd6+ {[%emt 0:01:26]} 47. Kd7 {[%emt 0:00:18]} Kf7 {[%emt 0:00:11]} 48. Rc1 {[%emt 0:02:46]} (48. Rf4 {keeps fighting.} Nb5 49. Rf3) 48... f5 {[%emt 0:00:15]} 49. gxf5 {[%emt 0:00:17]} gxf5 {[%emt 0:00:17][%cal Bg6f5,Bf5f4,Bf4f3,Bf3f2][%mdl 32]} 50. Kc6 {[%emt 0:01:38]} Ke6 {[%emt 0:00:40]} 51. Re1+ {[%emt 0:00:13]} Ne4 {[%emt 0:00:09]} 52. Rg1 {[%emt 0:00:11] Inhibits Bg7.} f4 {[%emt 0:00:36] And now ...f3 would win.} 53. Rg8 {[%emt 0:00:19]} Be7 {[%emt 0:00:15]} 54. Rg4 {[%emt 0:00:18]} Ke5 {[%emt 0:00:09]} 55. Rg7 {[%emt 0:00:36]} Bf6 {[%emt 0:00:11]} 56. Rg1 {[%emt 0:00:12]} f3 {[%emt 0:00:10]} 57. Kb5 {[%emt 0:00:06]} Be7 {[%emt 0:00:17]} 58. Rg7 {[%emt 0:00:23]} Kf6 {[%emt 0:00:11]} 59. Rg1 {[%emt 0:00:11]} f2 {[%emt 0:00:06]} 60. Rf1 {[%emt 0:00:04]} Bc5 {[%emt 0:00:16]} 61. h4 {[%emt 0:00:34]} Nd2 {[%emt 0:00:17] Black mates.} 62. Rxf2+ {[%emt 0:00:05]} Bxf2 {[%emt 0:00:08]} 63. Kxb4 {[%emt 0:00:02]} Bxh4 {[%emt 0:00:08]} 64. a4 {[%emt 0:00:05]} Bf2 {[%emt 0:00:06]} 65. a5 {[%emt 0:00:04]} h5 {[%emt 0:00:05][%cal Bh7h5,Bh5h4][%mdl 32]} 66. a6 {[%emt 0:00:03]} h4 {[%emt 0:00:09]} 67. a7 {[%emt 0:00:02]} Bxa7 {[%emt 0:00:03] Weighted Error Value: White=0.75/Black=0.46} 0-1

[Event "Mongolian Championship Women 2022"]
[Site "Chingis Khentii"]
[Date "2022.05.21"]
[Round "9.5"]
[White "Nomindalai Tumurbaatar"]
[Black "Munkhzul, Turmunkh"]
[Result "1/2-1/2"]
[ECO "E62"]
[WhiteElo "2111"]
[BlackElo "2294"]
[Annotator "TA"]
[PlyCount "105"]
[EventDate "2022.05.12"]
[EventType "tourn"]
[EventCountry "MGL"]
[SourceTitle "playchess.com"]
[Source "ChessBase"]
[SourceQuality "1"]
[TimeControl "40/5400+30:1800+30"]

{[%evp 20,105,25,25,29,22,19,11,20,16,24,5,14,12,13,10,10,0,4,16,37,57,83,78,110,95,92,89,88,83,168,121,125,114,134,129,126,116,135,80,72,74,71,62,81,80,62,0,0,0,0,-18,-16,-23,-13,-97,-99,-140,-47,-150,-141,-193,-199,-161,-133,-122,0,0,0,0,0,0,0,0,0,0,0,0,0,0,0,0,0,0,0,0,0,0]} 1. d4 {[%emt 0:00:08]} Nf6 {[%emt 0:00:10]} 2. c4 {[%emt 0:00:17]} g6 {[%emt 0:00:13]} 3. g3 {[%emt 0:04:07]} Bg7 {[%emt 0:00:12]} 4. Bg2 {[%emt 0:00:28]} O-O {[%emt 0:00:11]} 5. Nc3 {[%emt 0:02:08]} d6 {[%emt 0:00:11]} 6. Nf3 {[%emt 0:15:54]} Nc6 {[%emt 0:00:12]} 7. O-O {[%emt 0:00:42]} e5 {[%emt 0:00:14]} 8. dxe5 {[%emt 0:08:59]} Nxe5 {[%emt 0:00:13]} 9. Nxe5 {[%emt 0:00:12]} dxe5 {[%emt 0:00:06]} 10. Qxd8 {[%emt 0:02:05]} Rxd8 {[%emt 0:00:08]} 11. Bg5 {[%emt 0:04:42] Hoping for Ne4.} Rd7 {[%emt 0:00:08] E62: King's Indian: Fianchetto: 6...c6 and Panno Variation (6...Nc6) without ...a6.} 12. Rad1 {[%emt 0:03:02] 12.Rfd1 is more advanced technology.} c6 {[%emt 0:01:02]} 13. Na4 {[%emt 0:08:40]} h6 {[%emt 0:10:14] [#]} 14. Bd2 $146 {[%emt 0:06:29]} ({Predecessor:} 14. Be3 Rxd1 15. Rxd1 Be6 16. b3 Nd7 17. h4 Bf8 18. Be4 f5 19. Bb1 Kf7 20. f3 {½-½ (38) Dragun,K (2584)-Sepp,O (2411) Batumi 2019}) 14... Re7 {[%emt 0:10:10]} 15. Bc3 {[%emt 0:07:14]} Bg4 {[%emt 0:07:40]} 16. Rfe1 {[%emt 0:02:04]} Nd7 {[%emt 0:04:44]} 17. b3 {[%emt 0:04:35]} Rc8 {[%emt 0:05:23]} 18. h3 {[%emt 0:03:30]} Be6 {[%emt 0:00:32]} 19. Rd6 {[%emt 0:05:30]} f6 {[%emt 0:21:35]} 20. Red1 {[%emt 0:02:48][%cal Od6e6] Threatens to win with Rxe6!} Nf8 {[%emt 0:11:26]} 21. Nc5 {[%emt 0:01:40]} Kf7 {[%emt 0:01:59]} 22. a4 {[%emt 0:00:54][%cal Ba2a4,Ba4a5][%mdl 32]} Rcc7 {[%emt 0:04:23]} 23. a5 {[%emt 0:01:52] Strongly threatening a6.} a6 {[%emt 0:00:58]} 24. Bb4 {[%emt 0:00:44]} Re8 {[%emt 0:03:55]} (24... f5 $16) 25. R6d2 {[%emt 0:05:36]} (25. Rd8 $18) 25... f5 $16 {[%emt 0:01:36]} 26. e4 {[%emt 0:02:48]} Bc8 {[%emt 0:01:43]} 27. exf5 $1 {[%emt 0:00:53]} gxf5 {[%emt 0:00:09]} 28. Bf3 $1 {[%emt 0:00:09]} Kg6 {[%emt 0:03:31] [#] Against Bh5+} 29. Rd6+ {[%emt 0:02:05]} (29. Rd8 $142 $1 {[%cal Rd8e8]} Rxd8 30. Rxd8) 29... Ne6 {[%emt 0:00:42]} 30. g4 {[%emt 0:01:53] And now gxf5+ would win. White is much more active. The black rooks are badly placed.} Kh7 {[%emt 0:00:08]} 31. Nxe6 {[%emt 0:02:36]} (31. gxf5 {looks sharper.} Nxc5 32. Bh5 Bxf5 33. Bxe8 Nxb3 34. c5) 31... Bxe6 {[%emt 0:00:07]} 32. gxf5 {[%emt 0:01:02]} Bxf5 {[%emt 0:00:31]} 33. Rd8 {[%emt 0:00:41]} (33. Bg4 $14 Rf8 34. Bc5) 33... Rxd8 $11 {[%emt 0:01:28]} 34. Rxd8 {[%emt 0:00:01]} Bf6 {[%emt 0:00:18]} 35. Rf8 {[%emt 0:01:00]} Kg7 {[%emt 0:00:10]} 36. Rb8 {[%emt 0:00:10]} Bxh3 {[%emt 0:02:00]} 37. Bf8+ {[%emt 0:00:11]} (37. Be4 $11) 37... Kg6 $17 {[%emt 0:00:43]} 38. b4 {[%emt 0:01:03][%cal Ob4b5]} Kf5 {[%emt 0:01:38]} (38... Rc8 $17 39. Be4+ Kg5 40. Rxc8 Bxc8) 39. Kh2 {[%emt 0:00:37] [#]} ({White should try} 39. b5 $15) 39... Bf1 $1 {[%emt 0:01:02]} 40. c5 {[%emt 0:00:00]} (40. Bc5 $17) 40... e4 {[%emt 0:00:00]} 41. Bd6 {[%emt 0:02:37] aiming for Bxe4+.} Rg7 {[%emt 0:03:10]} 42. Bh1 {[%emt 0:00:16]} Bd4 {[%emt 0:12:05]} (42... Bc4 $17 {White must now prevent ...Be5+.} 43. Bg2 Bc3 44. Rf8+ Rf7 45. Rxf7+ Bxf7 46. Bh3+ Kg5) 43. Rf8+ $11 {[%emt 0:04:44] The position is equal.} Ke6 {[%emt 0:01:31]} 44. Bxe4 {[%emt 0:01:03]} Be5+ {[%emt 0:00:09]} 45. f4 $1 {[%emt 0:05:34]} ({Reject} 45. Bxe5 Kxe5 46. Bf3 Kd4 47. Rf4+ Kc3 $17) 45... Bxd6 {[%emt 0:01:20]} 46. cxd6 {[%emt 0:00:08]} Kxd6 {[%emt 0:00:34][%mdl 4096] Endgame KRB-KRB} 47. Rf6+ {[%emt 0:00:05]} Ke7 {[%emt 0:03:47]} 48. Rxh6 {[%emt 0:00:21]} Rg4 {[%emt 0:03:19]} 49. Rh7+ {[%emt 0:01:00]} Kd6 {[%emt 0:00:57]} 50. Rh6+ {[%emt 0:02:51]} Ke7 {[%emt 0:00:48]} 51. Rh7+ {[%emt 0:00:08]} Kd6 {[%emt 0:00:33]} 52. Rh6+ {[%emt 0:00:08]} Ke7 {[%emt 0:00:05]} 53. Rh7+ {[%emt 0:00:04] Weighted Error Value: White=0.15 (very precise) /Black=0.09 (flawless)} 1/2-1/2